[Event "SRB-chT 1st League Women 2018"]
[Site "Zajecar"]
[Date "2018.09.10"]
[Round "11"]
[White "Rapport, Jovana"]
[Black "Kovacevic, Radmila"]
[Result "1-0"]
[ECO "A45"]
[WhiteElo "2348"]
[BlackElo "2144"]
[Annotator "NA"]
[PlyCount "103"]
[EventDate "2018.08.31"]
[EventType "team-tourn"]
[EventCountry "SRB"]
[SourceTitle "playchess.com"]
[Source "ChessBase"]
[SourceQuality "1"]
[TimeControl "40/5400+30:1800+30"]

1. d4 {[%emt 0:00:00]} Nf6 {[%emt 0:00:00]} 2. Nc3 {[%emt 0:00:00]} d5 {[%emt 0:00:41]} 3. Bf4 {[%emt 0:00:04]} c5 {[%emt 0:02:30]} 4. e3 {[%emt 0:00:08]} cxd4 {[%emt 0:00:33]} 5. exd4 {[%emt 0:00:10]} a6 {[%emt 0:00:15] B13: Caro-Kann: Exchange Variation and Panov-Botvinnik Attack} 6. Nf3 {[%emt 0:00:07]} Nc6 {[%emt 0:01:10]} 7. Ne5 {[%emt 0:00:05]} e6 {[%emt 0:03:35]} 8. Nxc6 {[%emt 0:00:52]} bxc6 {[%emt 0:00:07]} 9. Na4 {[%emt 0:00:04]} Bd6 {[%emt 0:07:41]} 10. Bg5 $146 {[%emt 0:05:46]} ({Predecessor:} 10. Bg3 Bxg3 11. hxg3 Qd6 12. Bd3 e5 13. dxe5 Qxe5+ {½-½ (68) Nisipeanu,L (2683)-Bluebaum,M (2642) Dortmund 2017}) 10... Qa5+ {[%emt 0:02:48]} 11. c3 {[%emt 0:00:27]} Ne4 {[%emt 0:00:22]} 12. Be3 {[%emt 0:00:41]} f5 {[%emt 0:06:46]} 13. f3 {[%emt 0:17:33]} Nf6 {[%emt 0:07:19]} 14. f4 {[%emt 0:05:03]} O-O {[%emt 0:06:13]} 15. Bd3 {[%emt 0:00:45]} Ne4 {[%emt 0:16:29]} 16. O-O {[%emt 0:01:21]} Rf6 {[%emt 0:02:03]} 17. c4 {[%emt 0:02:33]} Qd8 {[%emt 0:07:16]} 18. c5 {[%emt 0:04:56]} Bc7 {[%emt 0:01:20]} 19. b4 {[%emt 0:00:07]} Rh6 {[%emt 0:00:27]} 20. g3 {[%emt 0:00:29]} Bd7 {[%emt 0:05:58]} 21. Rb1 {[%emt 0:03:41]} Be8 {[%emt 0:02:53]} 22. Be2 {[%emt 0:05:49]} g5 {[%emt 0:05:54]} 23. Rb3 {[%emt 0:01:28]} g4 {[%emt 0:05:14]} 24. Nc3 {[%emt 0:00:20]} Nf6 {[%emt 0:02:19]} 25. Ra3 {[%emt 0:00:37]} Rg6 {[%emt 0:04:31]} (25... a5 $14) 26. Rxa6 {[%emt 0:01:06]} Rxa6 {[%emt 0:03:33]} 27. Bxa6 {[%emt 0:00:05]} h5 {[%emt 0:00:11]} 28. Kg2 {[%emt 0:10:01]} h4 {[%emt 0:01:02]} 29. Bd3 {[%emt 0:00:09]} Nh5 {[%emt 0:00:36]} 30. Ne2 {[%emt 0:00:25]} Rh6 {[%emt 0:01:05]} 31. Rh1 {[%emt 0:00:28]} Qa8 {[%emt 0:01:28]} 32. a4 {[%emt 0:00:14]} Qb8 {[%emt 0:00:20]} 33. Qb1 {[%emt 0:00:33]} Qa8 {[%emt 0:01:50]} 34. Qb3 {[%emt 0:00:35]} Kg7 {[%emt 0:00:16]} 35. b5 {[%emt 0:02:07]} cxb5 {[%emt 0:00:57]} 36. axb5 {[%emt 0:00:01]} Rh8 {[%emt 0:01:02]} 37. b6 {[%emt 0:03:37]} Qb7 {[%emt 0:00:50]} 38. Bb5 {[%emt 0:06:28]} e5 {[%emt 0:00:42]} 39. Ra1 {[%emt 0:00:29]} h3+ {[%emt 0:00:36]} 40. Kg1 {[%emt 0:00:00]} Bb8 {[%emt 0:00:00]} 41. fxe5 {[%emt 0:02:48]} Bf7 {[%emt 0:10:09]} 42. Qa4 {[%emt 0:04:31]} Rf8 {[%emt 0:11:50]} 43. Nf4 {[%emt 0:00:19]} Nxf4 {[%emt 0:02:51]} 44. Bxf4 {[%emt 0:00:18]} Be6 {[%emt 0:00:08]} 45. Ba6 {[%emt 0:02:35]} Qe7 {[%emt 0:01:08]} 46. c6 {[%emt 0:00:43]} Bc8 {[%emt 0:03:50]} 47. Qa3 $18 {[%emt 0:03:25]} Qe6 {[%emt 0:01:47]} 48. Bb5 {[%emt 0:01:34]} Rf7 {[%emt 0:01:27]} 49. Qc5 {[%emt 0:00:22]} Kg6 {[%emt 0:00:42]} 50. Ra8 {[%emt 0:00:57]} Bxe5 {[%emt 0:01:38]} 51. dxe5 {[%emt 0:03:09]} Rf6 {[%emt 0:00:34]} 52. Qd6 {[%emt 0:01:01]} 1-0

[Event "SRB-chT 1st League Women 2018"]
[Site "Zajecar"]
[Date "2018.09.10"]
[Round "11"]
[White "Voiska, Margarita"]
[Black "Doluhanova, Evgeniya"]
[Result "0-1"]
[ECO "B20"]
[WhiteElo "2241"]
[BlackElo "2321"]
[Annotator "NA"]
[PlyCount "94"]
[EventDate "2018.08.31"]
[EventType "team-tourn"]
[EventCountry "SRB"]
[SourceTitle "playchess.com"]
[Source "ChessBase"]
[SourceQuality "1"]
[TimeControl "40/5400+30:1800+30"]

1. e4 {[%emt 0:04:57]} c5 {[%emt 0:00:00]} 2. c4 {[%emt 0:00:39]} Nc6 {[%emt 0:01:36]} 3. Nc3 {[%emt 0:00:16]} g6 {[%emt 0:00:52]} 4. d3 {[%emt 0:00:29]} Bg7 {[%emt 0:00:07]} 5. g3 {[%emt 0:00:14]} d6 {[%emt 0:00:26]} 6. Bg2 {[%emt 0:00:26]} Nf6 {[%emt 0:03:08]} 7. Nge2 {[%emt 0:02:17]} O-O {[%emt 0:00:10] LiveBook: 632 Partien} 8. O-O {[%emt 0:03:07]} Rb8 {[%emt 0:00:35]} 9. Rb1 {[%emt 0:01:21]} a6 {[%emt 0:00:46]} 10. a4 {[%emt 0:00:57]} Ne8 {[%emt 0:05:53]} 11. Be3 {[%emt 0:06:31]} Nc7 {[%emt 0:01:30] A36: Symmetrical English vs ...g6: 4 Bg2 Bg7} 12. h3 {[%emt 0:12:27]} (12. d4 cxd4 13. Nxd4 Ne6 14. Nde2 Nc5 15. b4 Nd7 16. f4 a5 17. b5 Nb4 18. Nd5 Nc5 19. Nxb4 axb4 20. Rxb4 {0-1 (53) Eljanov,P (2711)-Amonatov,F (2636) Riadh 2017}) 12... b5 {[%emt 0:06:56]} 13. cxb5 $146 {[%emt 0:07:42]} ({Predecessor:} 13. axb5 axb5 14. b3 b4 15. Nd5 Ne6 16. Qd2 Ned4 17. Nxd4 Nxd4 18. Nf4 Nc6 {0-1 (46) Fonseca,L (1874)-Menna Barreto,F (2277) Porto Alegre 2013}) 13... axb5 {[%emt 0:00:28]} 14. d4 {[%emt 0:04:55]} b4 {[%emt 0:15:07]} 15. Nd5 {[%emt 0:03:44]} e6 {[%emt 0:01:49]} 16. Nxc7 {[%emt 0:00:46]} Qxc7 {[%emt 0:00:04]} 17. d5 {[%emt 0:09:34]} exd5 {[%emt 0:03:36]} 18. exd5 {[%emt 0:00:21]} Ne5 {[%emt 0:01:23]} 19. Rc1 {[%emt 0:08:22]} Ba6 {[%emt 0:03:31]} 20. b3 {[%emt 0:00:34]} Rfe8 {[%emt 0:01:26]} 21. Nf4 {[%emt 0:07:36]} (21. Nd4 $17) 21... Bxf1 {[%emt 0:02:16]} 22. Bxf1 {[%emt 0:00:08]} Nd7 {[%emt 0:03:26]} 23. Ng2 {[%emt 0:02:48]} Nf6 {[%emt 0:05:58]} 24. Bf4 {[%emt 0:03:48]} Ne4 {[%emt 0:02:40]} 25. h4 {[%emt 0:01:48]} Nc3 {[%emt 0:01:11]} 26. Qf3 {[%emt 0:00:31]} Qd7 {[%emt 0:01:51]} 27. Ne3 {[%emt 0:01:30]} Rbd8 {[%emt 0:13:40]} 28. Bg5 {[%emt 0:04:22]} f6 {[%emt 0:02:53]} 29. Bf4 {[%emt 0:00:02]} Qe7 {[%emt 0:00:53]} 30. Nc4 {[%emt 0:02:07]} Qf8 {[%emt 0:04:40]} 31. Kg2 {[%emt 0:04:53]} Bh6 {[%emt 0:00:49]} 32. Bxh6 {[%emt 0:00:22]} Qxh6 {[%emt 0:00:05]} 33. Ra1 {[%emt 0:00:07]} f5 {[%emt 0:00:30]} 34. a5 {[%emt 0:01:06]} Qg7 {[%emt 0:01:26]} 35. a6 {[%emt 0:02:27]} Nb5 {[%emt 0:01:12]} 36. Ra5 {[%emt 0:02:24]} Nd4 {[%emt 0:00:13]} 37. Qd3 {[%emt 0:00:56]} Qf7 {[%emt 0:02:10]} 38. Nb6 {[%emt 0:01:31]} Qc7 {[%emt 0:01:59]} 39. Nc4 {[%emt 0:00:05]} Ra8 {[%emt 0:02:13]} 40. Ra1 {[%emt 0:00:00]} Ra7 {[%emt 0:00:00]} 41. Kg1 {[%emt 0:06:35]} Rea8 $19 {[%emt 0:04:04]} 42. Ne3 {[%emt 0:02:37]} Qe7 {[%emt 0:02:12]} 43. Ng2 {[%emt 0:02:08]} Qe5 {[%emt 0:02:34]} 44. Nf4 {[%emt 0:08:32]} Nf3+ {[%emt 0:01:28]} 45. Qxf3 {[%emt 0:00:05]} Qxa1 {[%emt 0:00:05]} 46. Qe3 {[%emt 0:01:17]} Qe5 {[%emt 0:01:44]} 47. Qd3 {[%emt 0:00:59]} Rxa6 {[%emt 0:00:37]} 0-1

[Event "SRB-chT 1st League Women 2018"]
[Site "Zajecar"]
[Date "2018.09.10"]
[Round "11"]
[White "Ostojic, Katarina"]
[Black "Djukic, Sandra"]
[Result "1/2-1/2"]
[ECO "A46"]
[WhiteElo "2134"]
[BlackElo "2162"]
[Annotator "ChessBase"]
[PlyCount "157"]
[EventDate "2018.08.31"]
[EventType "team-tourn"]
[EventCountry "SRB"]
[SourceTitle "playchess.com"]
[Source "ChessBase"]
[SourceQuality "1"]
[TimeControl "40/5400+30:1800+30"]

1. d4 {[%emt 0:00:00]} Nf6 {[%emt 0:00:00]} 2. Nf3 {[%emt 0:00:00]} e6 {[%emt 0:00:00]} 3. c4 {[%emt 0:00:17]} c5 {[%emt 0:01:03]} 4. e3 {[%emt 0:00:06]} cxd4 {[%emt 0:04:10]} 5. exd4 {[%emt 0:00:20]} d5 {[%emt 0:03:13]} 6. Nc3 {[%emt 0:00:55]} Be7 {[%emt 0:00:23]} 7. Bd3 {[%emt 0:01:28]} dxc4 {[%emt 0:00:57]} 8. Bxc4 {[%emt 0:00:13]} O-O {[%emt 0:00:37]} 9. O-O {[%emt 0:01:29]} a6 {[%emt 0:00:51]} 10. a4 {[%emt 0:03:08]} Nc6 {[%emt 0:04:01]} 11. Be3 {[%emt 0:07:10]} Nb4 {[%emt 0:01:38]} 12. h3 {[%emt 0:02:45]} b6 {[%emt 0:04:54]} 13. Qe2 {[%emt 0:02:56]} Bb7 {[%emt 0:01:38]} 14. Ne5 {[%emt 0:09:17]} Nfd5 {[%emt 0:01:50]} 15. Rac1 {[%emt 0:08:51]} Rc8 {[%emt 0:27:52]} 16. Nxd5 {[%emt 0:03:31]} Bxd5 {[%emt 0:07:54]} 17. Bxd5 {[%emt 0:06:52]} Qxd5 {[%emt 0:02:00]} 18. Rfd1 {[%emt 0:03:31]} b5 {[%emt 0:12:27]} 19. axb5 {[%emt 0:02:50]} axb5 {[%emt 0:03:18]} 20. Rc3 {[%emt 0:10:18]} f6 {[%emt 0:15:15]} 21. Nf3 {[%emt 0:06:20]} Bd6 {[%emt 0:02:02]} 22. Bd2 {[%emt 0:06:07]} Rce8 {[%emt 0:02:53]} 23. Be1 {[%emt 0:05:24]} Re7 {[%emt 0:01:39]} 24. Ra1 {[%emt 0:02:34]} Nc6 {[%emt 0:00:50]} 25. Ra6 {[%emt 0:02:09]} Nb8 {[%emt 0:00:22]} 26. Ra1 {[%emt 0:02:54]} Rfe8 {[%emt 0:00:39]} 27. Rac1 {[%emt 0:04:25]} Nd7 {[%emt 0:00:20]} 28. Rc8 {[%emt 0:00:22]} Nb6 {[%emt 0:00:14]} 29. Rxe8+ {[%emt 0:01:01]} Rxe8 {[%emt 0:00:04]} 30. Bd2 {[%emt 0:02:36]} Nc4 {[%emt 0:00:39]} 31. Bc3 {[%emt 0:02:06]} Nb6 {[%emt 0:00:59]} 32. Bd2 {[%emt 0:01:45]} Na4 {[%emt 0:00:38]} 33. Be3 {[%emt 0:00:53]} h6 {[%emt 0:00:31]} 34. Qc2 {[%emt 0:00:29]} f5 {[%emt 0:00:25]} 35. b3 {[%emt 0:00:42]} Nb6 {[%emt 0:00:19]} 36. Qc6 {[%emt 0:00:40]} Rb8 {[%emt 0:00:29]} 37. Ne5 {[%emt 0:00:54]} Kh7 {[%emt 0:00:45]} 38. Qxd5 {[%emt 0:00:44]} Nxd5 {[%emt 0:00:15]} 39. Rc6 {[%emt 0:00:40]} Bxe5 {[%emt 0:00:50]} 40. dxe5 {[%emt 0:00:00]} Re8 {[%emt 0:00:00]} 41. Bd2 {[%emt 0:07:55]} f4 {[%emt 0:05:02]} 42. Rc5 {[%emt 0:03:41]} Ra8 {[%emt 0:15:06]} 43. Kf1 {[%emt 0:07:46]} Ra2 {[%emt 0:02:24]} 44. Ke1 {[%emt 0:05:13]} Kg6 {[%emt 0:01:52]} 45. Rxb5 {[%emt 0:01:20]} Kf5 {[%emt 0:00:05]} 46. Ra5 {[%emt 0:01:20]} Rb2 {[%emt 0:00:29]} 47. b4 {[%emt 0:01:31]} Nxb4 {[%emt 0:01:42]} 48. Bxb4 {[%emt 0:00:17]} Rxb4 {[%emt 0:00:04]} 49. Ra7 {[%emt 0:00:41]} g6 {[%emt 0:00:34]} 50. Rh7 {[%emt 0:00:56]} h5 {[%emt 0:00:14]} 51. Rg7 {[%emt 0:01:05]} Rb5 {[%emt 0:02:12]} 52. Ke2 {[%emt 0:00:45]} Rxe5+ {[%emt 0:01:32]} 53. Kf3 {[%emt 0:00:07]} Ra5 {[%emt 0:00:24]} 54. Rf7+ {[%emt 0:01:09]} Kg5 {[%emt 0:02:52]} 55. h4+ {[%emt 0:00:10]} Kxh4 {[%emt 0:00:37]} 56. Rxf4+ {[%emt 0:00:33]} Kg5 {[%emt 0:00:04]} 57. Rb4 {[%emt 0:00:27]} Kf5 {[%emt 0:02:32]} 58. Rf4+ {[%emt 0:00:15]} Kg5 {[%emt 0:00:00]} 59. Rb4 {[%emt 0:00:05]} Ra3+ {[%emt 0:00:36]} 60. Ke4 {[%emt 0:01:12]} Ra2 {[%emt 0:00:43]} 61. Kf3 {[%emt 0:00:10]} e5 {[%emt 0:00:17]} 62. Rb5 {[%emt 0:00:58]} Kf5 {[%emt 0:00:12]} 63. Rb8 e4+ {[%emt 0:01:29]} 64. Ke3 {[%emt 0:00:31]} Ra3+ {[%emt 0:00:04]} 65. Kd4 {[%emt 0:01:14]} Rd3+ {[%emt 0:00:10]} 66. Kc4 {[%emt 0:00:14]} Rd2 {[%emt 0:01:38]} 67. Rf8+ {[%emt 0:00:11]} Kg4 {[%emt 0:00:35]} 68. Kc3 {[%emt 0:00:43]} Rd3+ {[%emt 0:00:29]} 69. Kc2 {[%emt 0:00:20]} Ra3 {[%emt 0:00:36]} 70. Kd2 {[%emt 0:00:20]} g5 {[%emt 0:00:54]} 71. Ke2 {[%emt 0:00:12]} e3 {[%emt 0:00:31]} 72. Rf3 {[%emt 0:01:04]} Ra2+ {[%emt 0:00:15]} 73. Kxe3 {[%emt 0:00:23]} Ra3+ {[%emt 0:00:03]} 74. Ke4 {[%emt 0:00:04]} Rxf3 {[%emt 0:00:46]} 75. gxf3+ {[%emt 0:00:06]} Kh3 {[%emt 0:00:33]} 76. f4 {[%emt 0:00:31]} gxf4 {[%emt 0:00:28]} 77. Kxf4 {[%emt 0:00:06]} Kg2 {[%emt 0:00:05]} 78. Kg5 {[%emt 0:00:06]} Kxf2 {[%emt 0:00:04]} 79. Kxh5 {[%emt 0:00:04]} 1/2-1/2

[Event "SRB-chT 1st League Women 2018"]
[Site "Zajecar"]
[Date "2018.09.10"]
[Round "11"]
[White "Bojicic, Andjela"]
[Black "Urosevic, Marija"]
[Result "1/2-1/2"]
[ECO "E21"]
[WhiteElo "2123"]
[BlackElo "2064"]
[Annotator "NA"]
[PlyCount "80"]
[EventDate "2018.08.31"]
[EventType "team-tourn"]
[EventCountry "SRB"]
[SourceTitle "playchess.com"]
[Source "ChessBase"]
[SourceQuality "1"]
[TimeControl "40/5400+30:1800+30"]

1. d4 {[%emt 0:00:00]} Nf6 {[%emt 0:00:00]} 2. c4 {[%emt 0:00:00]} e6 {[%emt 0:00:00]} 3. Nc3 {[%emt 0:00:00]} Bb4 {[%emt 0:00:00]} 4. Nf3 {[%emt 0:00:00]} b6 {[%emt 0:01:59]} 5. Bg5 {[%emt 0:01:00]} h6 {[%emt 0:10:00]} 6. Bh4 {[%emt 0:00:19]} c5 {[%emt 0:10:32]} 7. e3 {[%emt 0:06:40]} Bb7 {[%emt 0:03:04]} 8. Bd3 {[%emt 0:04:08]} cxd4 {[%emt 0:01:07]} 9. exd4 {[%emt 0:05:09]} O-O {[%emt 0:02:37] LiveBook: 13 Partien} 10. O-O {[%emt 0:00:16]} Be7 $14 {[%emt 0:02:16]} 11. Qe2 {[%emt 0:07:34]} d6 {[%emt 0:05:29]} 12. Rfd1 {[%emt 0:05:44]} Nbd7 {[%emt 0:00:51]} 13. Rac1 {[%emt 0:00:28]} Re8 {[%emt 0:02:16]} 14. b4 {[%emt 0:10:19]} Rc8 {[%emt 0:05:31]} 15. Nd2 {[%emt 0:14:17]} Qc7 {[%emt 0:15:18]} 16. Nb5 {[%emt 0:02:36]} Qb8 {[%emt 0:00:11]} 17. Bg3 {[%emt 0:01:39]} a6 {[%emt 0:00:25]} 18. Nc3 {[%emt 0:01:55]} Qa8 {[%emt 0:00:12]} 19. f3 {[%emt 0:10:06]} Nh5 {[%emt 0:04:25]} 20. Bb1 {[%emt 0:01:25]} Nxg3 {[%emt 0:00:28]} 21. hxg3 {[%emt 0:00:02]} Nf8 {[%emt 0:12:06]} 22. Qd3 {[%emt 0:03:03]} Qb8 {[%emt 0:06:57]} 23. d5 {[%emt 0:01:17]} exd5 {[%emt 0:02:37]} 24. Nxd5 {[%emt 0:00:13]} Bd8 {[%emt 0:03:03]} 25. Re1 {[%emt 0:02:20]} Re5 {[%emt 0:00:59]} 26. f4 {[%emt 0:02:40]} Re6 {[%emt 0:02:11]} 27. f5 {[%emt 0:04:25]} Rxe1+ {[%emt 0:02:10]} 28. Rxe1 {[%emt 0:00:01]} Bxd5 {[%emt 0:00:31]} 29. Qxd5 {[%emt 0:02:10]} b5 {[%emt 0:00:33]} 30. cxb5 {[%emt 0:03:12]} Qxb5 {[%emt 0:01:48]} 31. Qxb5 {[%emt 0:00:37]} axb5 {[%emt 0:00:01]} 32. Bd3 {[%emt 0:01:47]} Ra8 {[%emt 0:00:58]} 33. Bxb5 {[%emt 0:03:14]} Rxa2 {[%emt 0:00:05]} 34. Nc4 {[%emt 0:00:33]} d5 {[%emt 0:00:27]} 35. Ne5 {[%emt 0:03:00]} Bb6+ {[%emt 0:00:41]} 36. Kh2 {[%emt 0:00:30]} Bf2 {[%emt 0:00:46]} 37. Rd1 {[%emt 0:00:31]} Ra3 {[%emt 0:01:56]} 38. Rd3 {[%emt 0:00:57]} Rxd3 {[%emt 0:00:05]} 39. Nxd3 {[%emt 0:00:54]} Bb6 {[%emt 0:00:20]} 40. Bc6 {[%emt 0:00:00]} d4 {[%emt 0:00:00]} 1/2-1/2

[Event "SRB-chT 1st League Women 2018"]
[Site "Zajecar"]
[Date "2018.09.10"]
[Round "11"]
[White "Miladinovic, Lena"]
[Black "Stanimirovic, Marija"]
[Result "1-0"]
[ECO "B38"]
[WhiteElo "2098"]
[BlackElo "1901"]
[Annotator "NA"]
[PlyCount "127"]
[EventDate "2018.08.31"]
[EventType "team-tourn"]
[EventCountry "SRB"]
[SourceTitle "playchess.com"]
[Source "ChessBase"]
[SourceQuality "1"]
[TimeControl "40/5400+30:1800+30"]

1. c4 {[%emt 0:00:00]} c5 {[%emt 0:00:00]} 2. Nf3 {[%emt 0:00:00]} g6 {[%emt 0:00:00]} 3. e4 {[%emt 0:00:00]} Bg7 {[%emt 0:00:30]} 4. d4 {[%emt 0:00:00]} cxd4 {[%emt 0:00:09]} 5. Nxd4 {[%emt 0:00:00]} Nc6 {[%emt 0:01:02]} 6. Be3 {[%emt 0:00:27]} d6 {[%emt 0:00:49]} 7. Nc3 {[%emt 0:00:18]} Nf6 {[%emt 0:00:28]} 8. Be2 {[%emt 0:00:18]} O-O {[%emt 0:00:13]} 9. O-O {[%emt 0:00:06]} Nxd4 {[%emt 0:01:34]} 10. Bxd4 {[%emt 0:00:10]} Bd7 {[%emt 0:00:25]} 11. h3 {[%emt 0:00:11]} Bc6 {[%emt 0:00:44]} 12. Qc2 {[%emt 0:01:09]} Nd7 {[%emt 0:04:07]} 13. Bxg7 {[%emt 0:00:49]} Kxg7 {[%emt 0:00:07]} 14. Rad1 {[%emt 0:00:10]} a5 {[%emt 0:03:12]} 15. Bg4 {[%emt 0:00:32]} Ne5 {[%emt 0:04:59]} 16. c5 {[%emt 0:00:25]} Nxg4 {[%emt 0:08:06]} 17. hxg4 {[%emt 0:00:09]} Qc8 {[%emt 0:01:02]} 18. cxd6 {[%emt 0:00:47]} exd6 {[%emt 0:00:13]} 19. f3 {[%emt 0:06:28]} ({Much less strong is} 19. Rxd6 Qxg4 20. Qd2 Rae8 $14) 19... Qe6 {[%emt 0:07:30]} 20. Rd4 {[%emt 0:04:50]} Qe5 {[%emt 0:08:02]} 21. Qd2 {[%emt 0:05:06]} Qc5 {[%emt 0:03:32]} 22. Kh1 {[%emt 0:17:55]} h5 {[%emt 0:10:43]} 23. g5 {[%emt 0:03:19]} f5 {[%emt 0:08:27]} 24. Rd1 {[%emt 0:09:51]} Rae8 {[%emt 0:04:29]} 25. Nd5 {[%emt 0:15:20]} fxe4 {[%emt 0:07:16]} 26. fxe4 {[%emt 0:02:22]} Bxd5 {[%emt 0:03:50]} 27. Rxd5 {[%emt 0:02:39]} Qc4 {[%emt 0:04:08]} 28. Qd4+ {[%emt 0:04:49]} Qxd4 {[%emt 0:00:10]} 29. R1xd4 {[%emt 0:00:13]} Rf1+ {[%emt 0:08:11]} 30. Kh2 {[%emt 0:00:04]} Re1 {[%emt 0:00:29]} 31. Rxa5 {[%emt 0:07:51]} R1xe4 {[%emt 0:00:43]} 32. Rxd6 {[%emt 0:01:35]} R8e7 {[%emt 0:04:31]} 33. Rb5 {[%emt 0:01:22]} Rg4 {[%emt 0:04:15]} 34. Rd2 {[%emt 0:07:02]} Rf7 {[%emt 0:01:25]} 35. Rd8 {[%emt 0:04:42]} Re7 {[%emt 0:01:14]} 36. Rb8 {[%emt 0:03:00]} Kf7 {[%emt 0:00:47]} 37. R8xb7 {[%emt 0:00:44]} Rh4+ {[%emt 0:00:25]} 38. Kg3 {[%emt 0:00:59]} Rg4+ {[%emt 0:00:07]} 39. Kf3 {[%emt 0:00:51]} Rxb7 {[%emt 0:00:26]} 40. Rxb7+ {[%emt 0:00:00]} Ke6 {[%emt 0:00:00]} 41. Rb6+ {[%emt 0:00:41]} Kf5 {[%emt 0:01:01]} 42. Rb5+ {[%emt 0:00:04]} Ke6 {[%emt 0:00:14]} 43. b3 {[%emt 0:00:58]} Kd7 {[%emt 0:00:50]} 44. a4 {[%emt 0:06:32]} Kc6 {[%emt 0:01:18]} 45. g3 {[%emt 0:04:38]} Rd4 $18 {[%emt 0:07:27]} 46. Rb8 {[%emt 0:00:54]} Rg4 {[%emt 0:01:51]} 47. Rb5 {[%emt 0:04:11]} Rd4 {[%emt 0:00:33]} 48. Rb8 {[%emt 0:04:01]} Rg4 {[%emt 0:00:26]} 49. a5 {[%emt 0:01:44]} Rxg5 {[%emt 0:03:34]} 50. a6 {[%emt 0:05:11]} Ra5 {[%emt 0:03:35]} 51. b4 {[%emt 0:00:55]} Ra3+ {[%emt 0:04:43]} 52. Kf4 {[%emt 0:01:30]} g5+ {[%emt 0:07:11]} 53. Kxg5 {[%emt 0:00:15]} Rxg3+ {[%emt 0:00:16]} 54. Kxh5 {[%emt 0:00:17]} Ra3 {[%emt 0:00:21]} 55. b5+ {[%emt 0:00:43]} Kc7 {[%emt 0:01:37]} 56. Rb7+ {[%emt 0:00:26]} Kc8 {[%emt 0:00:36]} 57. Kg4 {[%emt 0:00:16]} Ra1 {[%emt 0:00:55]} 58. Kf4 {[%emt 0:00:49]} Ra4+ {[%emt 0:00:38]} 59. Ke5 {[%emt 0:00:21]} Ra1 {[%emt 0:00:21]} 60. Kd5 {[%emt 0:00:24]} Rd1+ {[%emt 0:02:01]} 61. Kc5 {[%emt 0:00:20]} Rc1+ {[%emt 0:00:22]} 62. Kb6 {[%emt 0:00:15]} Rh1 {[%emt 0:01:17]} 63. Rc7+ {[%emt 0:00:26]} Kd8 {[%emt 0:00:20]} 64. a7 {[%emt 0:00:27]} 1-0

[Event "SRB-chT 1st League Women 2018"]
[Site "Zajecar"]
[Date "2018.09.10"]
[Round "11"]
[White "Ljubicic, Andjela"]
[Black "Vuckovic, Lidija"]
[Result "0-1"]
[ECO "B14"]
[WhiteElo "1567"]
[BlackElo "1834"]
[Annotator "NA"]
[PlyCount "62"]
[EventDate "2018.08.31"]
[EventType "team-tourn"]
[EventCountry "SRB"]
[SourceTitle "playchess.com"]
[Source "ChessBase"]
[SourceQuality "1"]
[TimeControl "40/5400+30:1800+30"]

1. e4 {[%emt 0:00:00]} c6 {[%emt 0:00:00]} 2. d4 {[%emt 0:00:00]} d5 {[%emt 0:00:00]} 3. exd5 {[%emt 0:00:18]} cxd5 {[%emt 0:00:02]} 4. c4 {[%emt 0:01:14]} Nf6 {[%emt 0:00:20]} 5. Nc3 {[%emt 0:01:45]} e6 {[%emt 0:00:19]} 6. cxd5 {[%emt 0:04:50]} Nxd5 {[%emt 0:00:29]} 7. Nf3 {[%emt 0:04:08]} Be7 {[%emt 0:04:04]} 8. Be2 {[%emt 0:03:40] D41: Queen's Gambit Declined: Semi-Tarrasch with 5 cxd5} (8. Bc4 Nc6 9. O-O O-O 10. Re1 Nxc3 11. bxc3 b6 12. Bd3 Bb7 13. h4 Bxh4 14. Nxh4 Qxh4 15. Re3 g6 16. Rh3 Qf6 17. Bh6 Rfe8 18. Qd2 e5 19. d5 Ne7 20. Bg5 Qd6 21. c4 f6 {1-0 (42) Illescas Cordoba,M (2605)-Volkov,S (2557) Barcelona 2018}) 8... O-O {[%emt 0:01:23]} 9. O-O {[%emt 0:03:22]} Nxc3 {[%emt 0:04:02]} 10. bxc3 {[%emt 0:00:29]} b6 $146 {[%emt 0:00:08]} ({Predecessor:} 10... Nd7 11. Re1 b6 12. Rb1 Bb7 13. Bd3 Qc7 14. Re3 g6 {1-0 (34) Waters,M-Moffatt,B Brisbane 2006}) 11. Bf4 {[%emt 0:10:49]} Bb7 {[%emt 0:00:57]} 12. Ne5 {[%emt 0:15:50]} Nd7 {[%emt 0:04:32]} 13. Bf3 {[%emt 0:12:08]} Qc8 {[%emt 0:07:04]} 14. a4 {[%emt 0:17:56]} Nf6 {[%emt 0:09:33]} 15. Bg5 {[%emt 0:14:43]} h6 {[%emt 0:08:03]} 16. Bxf6 {[%emt 0:01:12]} Bxf6 {[%emt 0:00:39]} 17. Bxb7 {[%emt 0:01:29]} Qxb7 {[%emt 0:00:10]} 18. Qf3 {[%emt 0:01:18]} Qc7 {[%emt 0:03:44]} 19. Qg3 {[%emt 0:03:09]} Rac8 {[%emt 0:03:38]} 20. Rfc1 {[%emt 0:00:46]} Rfd8 {[%emt 0:02:28]} 21. Qe3 {[%emt 0:00:43]} Qd6 $17 {[%emt 0:05:27]} (21... Bxe5 $142 $1 22. Qxe5 Qxe5 23. dxe5 Rd5) 22. Nf3 {[%emt 0:00:30]} Rc7 {[%emt 0:00:56]} 23. a5 {[%emt 0:00:28]} b5 {[%emt 0:05:47]} 24. Ra2 {[%emt 0:00:36]} a6 {[%emt 0:00:35]} 25. Rac2 {[%emt 0:00:30]} Qa3 {[%emt 0:02:06]} 26. c4 {[%emt 0:00:34]} Qxa5 {[%emt 0:02:26]} 27. d5 {[%emt 0:00:29]} bxc4 {[%emt 0:04:39]} 28. dxe6 {[%emt 0:00:26]} c3 {[%emt 0:05:09]} 29. exf7+ {[%emt 0:00:12]} Kxf7 {[%emt 0:00:01]} 30. h3 {[%emt 0:00:45]} Rcd7 {[%emt 0:01:22]} 31. Re2 {[%emt 0:00:38]} Re7 {[%emt 0:02:14]} 0-1